bitfinex-derivatives/quotes_ETHF0:USTF0_20250214
["timestamp","ask_amount","ask_price","bid_price","bid_amount"]
[1739535001685,0.74379,2688.6,2688.3,1.633]
[1739535001891,40.8,2688.4,2688.3,1.633]
[1739535002089,40.8,2688.4,2688.3,2.37685]
[1739535002590,40.8,2688.4,2688.3,4.37765]
[1739535002886,0.6844,2688.8,2688.7,0.74374]
[1739535003092,0.00356262,2689.0,2688.9,0.74369]
[1739535003295,0.00356262,2689.0,2688.9,3.03106682]
[1739535003598,0.00356262,2689.0,2688.9,3.69476682]
[1739535003896,0.00356262,2689.0,2688.9,4.34656682]
[1739535006997,40.80356262,2689.0,2688.9,4.34656682]
[1739535008893,40.80356262,2689.0,2688.9,0.6637]
[1739535009096,40.80356262,2689.0,2688.9,1.633]
[1739535009299,43.09093944,2689.0,2688.9,1.633]
[1739535009592,40.80356262,2689.0,2688.9,1.633]
[1739535009799,40.80356262,2689.0,2688.9,2.37669]
[1739535010393,40.80356262,2689.0,2688.9,5.31176682]
[1739535011900,40.80356262,2689.0,2688.9,5.99606682]
[1739535012101,40.80356262,2689.0,2688.9,3.70869]
[1739535012501,40.80356262,2689.0,2688.9,5.99606682]
[1739535013699,40.80356262,2689.0,2688.9,25.47206682]
[1739535013899,0.3082,2690.0,2688.9,24.72837682]
[1739535014097,0.3082,2690.0,2689.5,3.2078]
[1739535014403,0.3082,2690.0,2689.7,0.74345]
[1739535014605,0.3082,2690.0,2689.6,1.632]
[1739535014809,40.8,2689.7,2689.5,3.2078]
[1739535014993,2.99447682,2689.6,2689.5,0.00557714]
[1739535015197,2.99447682,2689.6,2688.9,19.476]
[1739535015198,3.32717682,2689.6,2688.9,19.476]
[1739535015393,0.74363,2689.2,2689.1,1.632]
[1739535015702,40.8,2689.2,2689.1,1.632]
[1739535015903,41.54361,2689.2,2689.1,1.632]
[1739535016302,40.8,2689.2,2689.1,1.632]
[1739535016697,41.54361,2689.2,2689.1,1.632]
[1739535017202,0.74364,2689.1,2688.9,19.48157714]
[1739535017402,0.74363,2689.1,2689.0,1.632]
[1739535017598,0.7436,2689.3,2689.0,1.632]
[1739535017800,0.00554147,2689.4,2689.0,4.8398]
[1739535018003,0.00554147,2689.4,2689.2,0.74358]
[1739535018404,0.65124147,2689.4,2689.2,0.7436]
[1739535018605,40.8,2689.3,2689.2,0.7436]
[1739535019312,40.8,2689.3,2689.0,4.8398]
[1739535019501,0.74361,2689.2,2689.1,1.632]
[1739535020093,2.28737682,2689.3,2689.1,1.632]
[1739535020307,40.8,2689.2,2689.1,1.632]
[1739535020515,41.54361,2689.2,2689.1,1.632]
[1739535020710,0.74366,2689.0,2688.9,21.11357714]
[1739535021007,0.74366,2689.0,2688.9,19.48157714]
[1739535021008,3.03103682,2689.0,2688.9,19.48157714]
[1739535021201,9.03103682,2689.0,2688.9,0.00557714]
[1739535021413,51.25454682,2689.0,2688.4,3.2078]
[1739535021614,51.25454682,2689.0,2688.2,1.3169]
[1739535021615,45.25454682,2689.0,2688.2,1.3169]
[1739535021806,0.74382,2688.5,2688.3,2.37584]
[1739535022008,0.74382,2688.5,2688.3,1.632]
[1739535022203,3.2078,2688.8,2688.3,1.632]
[1739535022516,0.7438,2688.5,2688.3,2.38141714]
[1739535023205,0.7438,2688.5,2688.3,0.00557714]
[1739535023402,0.7438,2688.5,2688.4,1.632]
[1739535023599,3.2078,2688.8,2688.3,0.00557714]
[1739535023809,3.03120682,2688.4,2688.3,1.63757714]
[1739535024107,3.03120682,2688.4,2688.3,0.00557714]
[1739535024307,8.28737682,2688.4,2687.8,4.8398]
[1739535024501,0.74396,2688.0,2687.8,4.8398]
[1739535024803,0.6492,2688.3,2687.8,4.8398]
[1739535025009,0.74397,2688.0,2687.8,4.8398]
[1739535025210,0.74397,2687.9,2687.8,3.2078]
[1739535025403,0.74403,2687.7,2687.6,0.00557714]
[1739535025608,0.316,2688.0,2687.6,1.63857714]
[1739535025805,0.74402,2687.7,2687.6,1.63857714]
[1739535026911,0.74402,2687.8,2687.6,0.00557714]
[1739535027212,41.4861,2687.7,2687.6,0.00557714]
[1739535027512,42.23012,2687.7,2687.6,0.00557714]
[1739535029807,41.4861,2687.7,2687.6,0.74962714]
[1739535030016,41.4861,2687.7,2687.6,0.00557714]
[1739535031919,40.8,2687.7,2687.6,0.74962714]
[1739535032818,40.8,2687.7,2687.6,0.00557714]
[1739535033312,40.8,2687.7,2687.6,0.74962714]
[1739535039718,0.00557714,2688.1,2688.0,0.74394]
[1739535040020,0.74377,2688.7,2688.3,0.74385]
[1739535040215,0.6828,2688.9,2688.4,2.9557]
[1739535040416,3.9516,2688.6,2688.5,1.633]
[1739535040616,44.7516,2688.6,2688.5,1.633]
[1739535041024,44.0078,2688.6,2688.5,1.633]
[1739535041521,40.8,2688.6,2688.5,1.633]
[1739535041716,40.8,2688.6,2688.5,2.3768]
[1739535043722,40.8,2688.6,2688.5,2.67706255]
[1739535043923,40.8,2688.6,2688.5,2.3768]
[1739535048928,40.8,2688.6,2688.4,1.3227]
[1739535049219,0.74375,2688.7,2688.5,1.632]
[1739535049419,0.00557714,2688.8,2688.4,1.3227]
[1739535049624,0.00557714,2688.8,2688.5,1.632]
[1739535049821,0.74377,2688.6,2688.5,1.632]
[1739535050026,0.7438,2688.5,2688.4,1.632]
[1739535050332,41.5438,2688.5,2688.4,1.632]
[1739535053028,0.74386,2688.3,2688.2,1.633]
[1739535053830,40.8,2688.3,2688.2,2.37687]
[1739535054029,41.54385,2688.3,2688.2,1.633]
[1739535056227,40.8,2688.3,2688.2,1.633]
[1739535056434,41.54385,2688.3,2688.2,1.633]
[1739535057337,40.8,2688.3,2688.2,1.633]
[1739535057545,41.54385,2688.3,2688.2,1.633]
[1739535061538,41.54385,2688.3,2688.2,2.37688]
[1739535062042,41.54385,2688.3,2688.2,1.633]
[1739535065745,40.8,2688.3,2688.2,2.37688]
[1739535066146,41.54385,2688.3,2688.2,1.633]
[1739535066745,40.8,2688.3,2688.2,1.633]
[1739535066940,40.8,2688.3,2688.2,2.37688]
[1739535067537,41.54385,2688.3,2688.2,1.633]
[1739535069348,40.8,2688.3,2688.2,1.633]
[1739535069543,40.8,2688.3,2688.2,2.37688]
[1739535073141,40.8,2688.3,2688.2,1.633]
[1739535073345,0.7439,2688.2,2688.0,3.2078]
[1739535073648,0.74388,2688.2,2688.1,1.633]
[1739535073946,41.54388,2688.2,2688.1,1.633]
[1739535074148,40.8,2688.2,2688.1,1.633]
[1739535075241,41.54388,2688.2,2688.1,1.633]
[1739535075636,40.8,2688.2,2688.1,1.633]
[1739535075852,41.54388,2688.2,2688.1,1.633]
[1739535076149,40.8,2688.2,2688.1,1.633]
[1739535076550,41.54388,2688.2,2688.1,1.633]
[1739535076750,40.8,2688.2,2688.1,1.633]
[1739535077747,40.8,2688.2,2688.1,2.37691]
[1739535081953,40.8,2688.2,2688.1,2.37591]
[1739535083851,40.8,2688.2,2688.1,1.632]
[1739535084450,40.8,2688.2,2688.1,2.37591]
[1739535087157,40.8,2688.2,2688.1,1.632]
[1739535087553,40.8,2688.2,2688.1,2.37591]
[1739535087761,40.8,2688.2,2688.1,1.632]
[1739535088754,40.8,2688.2,2688.1,2.37591]
[1739535089455,40.8,2688.2,2688.1,1.632]
[1739535091357,41.54388,2688.2,2688.1,1.632]
[1739535091658,40.8,2688.2,2688.1,1.632]
[1739535091859,41.54388,2688.2,2688.1,1.632]
[1739535092460,40.8,2688.2,2688.1,1.632]
[1739535092662,41.54388,2688.2,2688.1,1.632]
[1739535092963,40.8,2688.2,2688.1,1.632]
[1739535093962,40.8,2688.2,2688.1,2.37591]
[1739535094261,40.8,2688.2,2688.0,3.2078]
[1739535094457,40.8,2688.2,2688.1,1.632]
[1739535095164,41.54388,2688.2,2688.1,1.632]
[1739535101661,41.54388,2688.2,2688.0,4.8398]
[1739535101662,0.74391,2688.1,2688.0,4.8398]
[1739535101964,1.38521,2688.1,2688.0,3.2078]
[1739535102159,1.65291,2688.1,2688.0,3.2078]
[1739535102467,42.45291,2688.1,2688.0,3.2078]
[1739535102662,41.709,2688.1,2687.7,3.2078]
[1739535102963,40.8,2688.1,2688.0,3.2078]
[1739535103265,40.8,2688.1,2688.0,3.95174]
[1739535104460,41.54391,2688.1,2688.0,3.2078]
[1739535105267,41.54391,2688.1,2687.8,0.6995]
[1739535105468,41.54391,2688.1,2687.8,1.44347]
[1739535105671,0.74395,2688.0,2687.8,1.44347]
[1739535106971,40.8,2688.1,2687.8,1.44347]
[1739535107269,41.54392,2688.1,2687.8,1.44347]
[1739535107470,0.74394,2688.0,2687.8,1.44347]
[1739535107863,40.8,2687.9,2687.8,0.6995]
[1739535108069,40.8,2687.9,2687.8,1.44349]
[1739535108464,40.8,2687.9,2687.8,0.6995]
[1739535108665,40.8,2687.9,2687.8,1.44349]
[1739535108861,40.8,2687.9,2687.8,0.6995]
[1739535110466,40.8,2687.9,2687.8,1.44349]
[1739535111269,40.8,2687.9,2687.8,0.6995]
[1739535111663,40.8,2687.9,2687.8,1.44349]
[1739535124787,0.66857714,2688.8,2687.8,0.6995]
[1739535124989,0.66857714,2688.8,2688.4,3.2078]
[1739535125185,0.66857714,2688.8,2688.5,3.74068]
[1739535125486,0.66857714,2688.8,2688.6,0.74377]
[1739535125786,40.8,2688.7,2688.5,4.40957]
[1739535126488,40.8,2688.7,2688.5,3.6658]
[1739535127186,40.8,2688.7,2688.6,3.03114682]
[1739535128493,40.8,2688.7,2688.6,2.28737682]
[1739535128693,40.8,2688.7,2688.6,3.03114682]
[1739535128997,40.8,2688.7,2688.6,2.28737682]
[1739535129201,40.8,2688.7,2688.5,4.40957]
[1739535129898,40.8,2688.7,2688.6,0.74377]
[1739535130099,40.8,2688.7,2688.5,4.40958]
[1739535130901,0.00557714,2688.8,2688.5,4.40958]
[1739535131298,40.8,2688.6,2688.5,4.40958]
[1739535131904,40.8,2688.6,2688.5,4.4096]
[1739535132100,40.8,2688.6,2688.5,3.6658]
[1739535132300,40.8,2688.6,2688.5,4.4096]
[1739535140708,40.8,2688.6,2688.5,7.6174]
[1739535145718,40.8,2688.6,2688.5,8.64000512]
[1739535160717,0.00557714,2688.8,2688.5,7.89620512]
[1739535160922,1.02260512,2689.7,2689.3,0.74358]
[1739535161213,0.6728,2689.4,2689.3,3.39718512]
[1739535161414,0.6728,2689.4,2689.3,6.60498512]
[1739535161721,40.8,2689.4,2689.3,6.60496512]
[1739535162807,40.8,2689.4,2689.3,5.86140512]
[1739535163219,40.8,2689.4,2689.3,4.8388]
[1739535163618,40.8,2689.4,2689.3,5.58238]
[1739535163917,40.8,2689.4,2689.3,4.8388]
[1739535164216,40.8,2689.4,2689.3,5.86140512]
[1739535167016,40.8,2689.4,2689.3,4.8388]
[1739535167217,40.8,2689.4,2689.3,3.2078]
[1739535167424,41.54355,2689.4,2689.3,4.8388]
[1739535167921,41.54355,2689.4,2689.3,3.2078]
[1739535168214,41.54355,2689.4,2689.3,1.631]
[1739535169320,40.8,2689.4,2689.3,1.631]
[1739535169518,40.8,2689.4,2689.3,3.39718512]
[1739535169720,40.8,2689.4,2689.3,5.58238]
[1739535170626,40.8,2689.4,2689.3,4.8388]
[1739535170926,41.54355,2689.4,2689.3,4.8388]
[1739535171126,41.1313,2689.4,2689.3,4.8388]
[1739535171317,40.8,2689.4,2689.3,4.8388]
[1739535171624,40.8,2689.4,2689.3,5.58238]
[1739535172218,40.8,2689.4,2689.3,6.89958]
[1739535173222,40.8,2689.4,2689.3,6.156]
[1739535173421,40.8,2689.4,2689.3,6.89958]
[1739535174821,40.8,2689.4,2689.3,6.89858]
[1739535175821,40.8,2689.4,2689.3,5.26858]
[1739535176132,40.8,2689.4,2689.3,6.155]
[1739535178128,40.8,2689.4,2689.3,6.89858]
[1739535178725,40.8,2689.4,2689.2,0.7074]
[1739535178925,0.74357,2689.4,2689.2,1.63]
[1739535179233,2.28393728,2689.4,2689.1,0.00557714]
[1739535179434,41.54361,2689.2,2689.1,0.00557714]
[1739535180034,42.23181,2689.2,2689.1,0.00557714]
[1739535184535,42.23181,2689.2,2689.1,0.00281666]
[1739535186325,48.23181,2689.2,2689.1,0.00281666]
[1739535186530,0.74374,2688.7,2688.6,1.63]
[1739535188035,41.54374,2688.7,2688.6,1.63]
[1739535189745,41.54374,2688.7,2688.5,1.3497]
[1739535189746,40.8,2688.7,2688.5,1.3497]
[1739535190044,0.74377,2688.6,2688.5,1.63]
[1739535190334,1.40737,2688.6,2688.5,1.63]
[1739535191135,42.20737,2688.6,2688.5,1.63]
[1739535191832,0.7438,2688.5,2688.4,0.00557714]
[1739535192239,7.0688,2688.5,2688.4,0.00557714]
[1739535192535,47.8688,2688.5,2688.4,0.00557714]
[1739535192741,0.74396,2687.9,2687.8,4.8378]
[1739535193441,0.74396,2687.9,2687.8,5.58179]
[1739535193636,41.54396,2687.9,2687.8,5.58179]
[1739535194337,40.8,2687.9,2687.8,5.58179]
[1739535194846,41.54396,2687.9,2687.8,4.8378]
[1739535195040,40.8,2687.9,2687.8,5.58179]
[1739535195236,40.8,2687.9,2687.8,4.8378]
[1739535195435,41.54396,2687.9,2687.8,4.8378]
[1739535196141,40.8,2687.9,2687.8,4.8378]
[1739535196340,41.54396,2687.9,2687.8,4.8378]
[1739535197044,40.8,2687.9,2687.8,4.8378]
[1739535197745,41.54396,2687.9,2687.8,4.8378]
[1739535199539,41.54396,2687.9,2687.8,3.2078]
[1739535204640,42.20646,2687.9,2687.8,3.2078]
[1739535213958,40.8,2687.9,2687.8,3.95179]
[1739535214256,41.54396,2687.9,2687.8,3.95179]
[1739535214953,41.54396,2687.9,2687.8,3.2078]
[1739535215848,40.8,2687.9,2687.8,3.95179]
[1739535216254,41.54396,2687.9,2687.8,3.95179]
[1739535216850,40.8,2687.9,2687.8,3.95179]
[1739535217153,40.8,2687.9,2687.8,3.2078]
[1739535217361,41.54396,2687.9,2687.8,3.2078]
[1739535217654,40.8,2687.9,2687.8,3.95179]
[1739535217858,41.54396,2687.9,2687.8,3.95179]
[1739535218158,41.54396,2687.9,2687.8,3.2078]
[1739535218349,40.8,2687.9,2687.8,3.95179]
[1739535219161,41.54396,2687.9,2687.8,3.2078]
[1739535219459,40.8,2687.9,2687.8,3.95179]
[1739535219655,41.54396,2687.9,2687.8,3.2078]
[1739535220062,40.8,2687.9,2687.8,3.95179]
[1739535220361,41.54396,2687.9,2687.8,3.2078]
[1739535220562,40.8,2687.9,2687.8,3.95179]
[1739535222253,41.54396,2687.9,2687.8,3.95179]
[1739535222460,40.8,2687.9,2687.8,3.95179]
[1739535222660,41.54396,2687.9,2687.8,3.95179]
[1739535222861,41.54396,2687.9,2687.8,3.2078]
[1739535223859,41.54396,2687.9,2687.8,3.95179]
[1739535224168,40.8,2687.9,2687.8,3.95179]
[1739535224667,41.54396,2687.9,2687.8,3.95179]
[1739535225065,40.8,2687.9,2687.8,3.95179]
[1739535226069,41.54396,2687.9,2687.8,3.2078]
[1739535226569,41.54396,2687.9,2687.8,3.95179]
[1739535227072,40.8,2687.9,2687.8,3.95179]
[1739535227263,41.54396,2687.9,2687.8,3.95179]
[1739535227869,40.8,2687.9,2687.8,3.95179]
[1739535228059,40.8,2687.9,2687.8,3.2078]
[1739535228264,41.54396,2687.9,2687.8,3.2078]
[1739535229368,40.8,2687.9,2687.8,3.95179]
[1739535229579,40.8,2687.9,2687.8,3.2078]
[1739535229770,40.8,2687.9,2687.8,3.95179]
[1739535230866,3.2078,2689.0,2687.8,4.23133116]
[1739535231084,0.74375,2688.7,2688.4,1.76734116]
[1739535231372,0.74375,2688.7,2688.5,3.5921]
[1739535231868,40.8,2688.6,2688.5,3.5921]
[1739535233266,42.56730116,2688.6,2688.5,3.5921]
[1739535233468,42.56730116,2688.6,2688.5,1.63]
[1739535233672,41.54377,2688.6,2688.5,1.63]
[1739535235176,40.8,2688.6,2688.3,1.3202]
[1739535235377,0.74382,2688.4,2688.3,1.3202]
[1739535236075,41.54382,2688.4,2688.3,1.3202]
[1739535236381,41.54382,2688.4,2687.9,3.2078]
[1739535236382,40.8,2688.4,2687.9,3.2078]
[1739535236575,0.7439,2688.2,2688.1,1.629]
[1739535237475,40.8,2688.2,2688.0,0.6905]
[1739535237776,40.8,2688.2,2687.9,6.1562]
[1739535237972,0.74393,2688.0,2687.9,6.1562]
[1739535238573,41.54393,2688.0,2687.9,6.1562]
[1739535240082,41.54393,2688.0,2687.9,6.90016]
[1739535240282,41.54393,2688.0,2687.9,6.1562]
[1739535241375,40.8,2688.0,2687.9,6.1562]
[1739535241777,41.54393,2688.0,2687.9,6.1562]
[1739535242484,41.54393,2688.0,2687.9,3.2078]
[1739535243381,41.54393,2688.0,2687.9,3.95176]
[1739535243576,41.54393,2688.0,2687.9,3.2078]
[1739535244777,40.8,2688.0,2687.7,1.387]
[1739535244983,0.74399,2687.8,2687.7,3.016]
[1739535245383,41.54399,2687.8,2687.7,3.016]
[1739535245791,42.17619,2687.8,2687.7,3.016]
[1739535247586,0.74402,2687.7,2687.6,3.21337714]
[1739535248581,41.54402,2687.7,2687.6,3.21337714]
[1739535261603,44.48427591,2687.7,2687.6,0.00557714]
[1739535267604,42.86046962,2687.7,2687.6,0.00557714]
[1739535271212,0.74407,2687.5,2687.4,0.64658]
[1739535271403,2.06051962,2687.5,2687.4,0.64658]
[1739535271703,3.68603082,2687.5,2687.4,0.64658]
[1739535271909,44.48603082,2687.5,2687.4,0.64658]
[1739535273209,45.08473082,2687.5,2687.4,0.64658]
[1739535273602,0.74413,2687.3,2687.2,0.00557714]
[1739535273907,0.74413,2687.3,2686.5,1.629]
[1739535273908,0.74427,2686.8,2686.5,1.629]
[1739535274414,41.54427,2686.8,2686.6,0.74432]
[1739535275308,41.54427,2686.8,2686.5,2.37890714]
[1739535276305,41.54427,2686.8,2686.6,0.74432]
[1739535276715,41.54427,2686.8,2686.6,0.7443]
[1739535276912,41.54427,2686.8,2686.7,23.43809]
[1739535277205,41.54427,2686.8,2686.7,22.6938]
[1739535280710,40.8,2686.8,2686.5,0.00557714]
[1739535280905,0.74432,2686.6,2686.5,0.00557714]
[1739535281313,44.75212,2686.6,2686.5,0.00557714]
[1739535281608,0.74435,2686.5,2686.4,1.3708]
[1739535282515,41.54435,2686.5,2686.4,1.3708]
[1739535282908,0.74441,2686.3,2686.2,0.00557714]
[1739535283109,3.68637082,2686.3,2686.2,1.34297714]
[1739535283608,47.69417082,2686.3,2686.2,1.34297714]
[1739535283918,47.69417082,2686.3,2686.2,0.00557714]
[1739535292722,47.69746392,2686.3,2686.2,0.00557714]
[1739535294725,52.27171784,2686.3,2686.2,7.14e-06]
[1739535295020,0.74449,2686.0,2685.9,1.3374]
[1739535295217,6.89754392,2686.0,2685.9,1.3374]
[1739535295921,47.69754392,2686.0,2685.9,0.7002]
[1739535296923,47.69810217,2686.0,2685.9,0.7002]
[1739535299219,46.95361217,2686.0,2685.7,0.00375377]
[1739535299424,0.74454,2685.8,2685.7,0.00375377]
[1739535299816,0.74454,2685.8,2685.7,3.77e-06]
[1739535300018,43.74581217,2685.8,2684.7,19.498]
[1739535300214,3.2078,2685.5,2685.0,0.6496]
[1739535300420,0.74474,2685.1,2685.0,0.6496]
[1739535301018,41.54474,2685.1,2685.0,0.6496]
[1739535301620,41.54474,2685.1,2684.2,3.2078]
[1739535301621,54.32062434,2685.1,2684.2,3.2078]
[1739535301820,54.32062434,2685.1,2683.5,0.07452953]
[1739535301821,2.94581217,2684.3,2683.9,3.2078]
[1739535302226,0.74504,2684.0,2683.9,3.2078]
[1739535302728,0.745,2684.2,2683.9,3.2078]
[1739535303135,0.745,2684.2,2684.0,0.6079]
[1739535303431,40.8,2684.1,2684.0,1.2252]
[1739535303833,40.8,2684.1,2684.0,7.97024]
[1739535304132,6.15361217,2685.2,2684.0,7.2252]
[1739535304332,3.66067,2685.4,2684.8,3.2078]
[1739535304629,6.1238,2686.0,2685.2,6.15361217]
[1739535304829,2.94581217,2686.4,2685.5,6.15361217]
[1739535305129,40.8,2685.9,2685.8,6.89815217]
[1739535305431,40.8,2685.9,2685.8,8.52715217]
[1739535305729,40.8,2685.9,2685.8,4.8368]
[1739535307734,40.8,2685.9,2685.8,5.4662]
[1739535309032,40.8,2685.9,2685.8,6.21074]
[1739535309223,40.8,2685.9,2685.8,5.4662]
[1739535310835,40.8,2685.9,2685.8,6.21074]
[1739535311526,40.8,2685.9,2685.8,15.15655217]
[1739535311936,0.00558774,2686.1,2686.0,0.74449]
[1739535312237,0.7443,2686.7,2686.3,0.7444]
[1739535312437,3.95208,2686.8,2686.4,2.8511]
[1739535312636,0.74429,2686.7,2686.4,2.8511]
[1739535312838,40.8,2686.5,2686.4,2.8511]
[1739535313934,40.8,2686.5,2686.4,3.59548]
[1739535314838,40.8,2686.5,2686.4,6.54129217]
[1739535315230,40.8,2686.5,2686.4,2.8511]
[1739535315737,41.54435,2686.5,2686.4,1.2221]
[1739535316031,41.54435,2686.5,2686.4,2.8511]
[1739535316433,40.8,2686.5,2686.4,2.8511]
[1739535316643,40.8,2686.5,2686.4,3.59548]
[1739535319038,40.8,2686.5,2686.4,6.54129217]
[1739535319240,0.00558774,2686.7,2686.6,0.74432]
[1739535319435,0.74408,2687.5,2687.2,0.74413]
[1739535319638,3.2078,2687.8,2687.3,1.628]
[1739535319934,0.7441,2687.5,2687.3,1.628]
[1739535320133,41.5441,2687.4,2687.3,1.628]
[1739535321745,0.74416,2687.2,2687.1,1.63358774]
[1739535322246,3.2078,2687.5,2687.1,1.63358774]
[1739535322442,0.74411,2687.4,2687.2,0.74415]
[1739535322637,0.00558774,2687.6,2687.2,1.97855]
[1739535322839,0.74964774,2687.6,2687.3,0.74413]
[1739535323044,41.54407,2687.5,2687.3,0.74413]
[1739535323244,0.74412,2687.4,2687.2,1.8802]
[1739535323447,40.8,2687.5,2687.2,1.8802]
[1739535323655,0.74413,2687.3,2687.2,1.2344]
[1739535324447,0.74413,2687.3,2687.2,0.6359]
[1739535324644,40.8,2687.5,2687.2,0.6359]
[1739535325147,41.54408,2687.5,2687.3,1.38992]
[1739535325350,40.8,2687.5,2687.3,0.6458]
[1739535325942,0.7441,2687.4,2687.3,0.6458]
[1739535326853,40.8,2687.5,2687.3,0.6458]
[1739535327058,40.8,2687.5,2687.4,3.9519]
[1739535329658,40.8,2687.5,2687.4,9.9519]
[1739535330166,40.8,2687.5,2687.4,3.9519]
[1739535334263,41.54407,2687.5,2687.4,3.9519]
[1739535334464,40.8,2687.5,2687.4,3.2078]
[1739535334769,40.8,2687.5,2687.4,1.627]
[1739535334963,42.19537,2687.5,2687.4,1.627]
[1739535335161,41.4513,2687.5,2687.4,1.627]
[1739535335466,41.4513,2687.5,2687.4,4.8348]
[1739535335858,42.19537,2687.5,2687.4,4.8348]
[1739535336057,42.19537,2687.5,2687.4,1.627]
[1739535342673,0.74416,2687.2,2687.1,0.00558774]
[1739535343470,41.54416,2687.2,2687.1,0.00558774]
[1739535343779,0.74429,2686.7,2686.6,1.627]
[1739535343975,0.74426,2686.9,2686.7,0.74428]
[1739535344170,0.6517,2686.8,2686.6,1.627]
[1739535344366,41.54429,2686.7,2686.6,2.37131]
[1739535344577,40.8,2686.7,2686.6,1.627]
[1739535344879,41.54429,2686.7,2686.6,1.627]
[1739535345375,41.54429,2686.7,2686.6,2.37132]
[1739535345376,40.8,2686.7,2686.6,2.37132]
[1739535345573,41.54429,2686.7,2686.6,1.627]
[1739535346174,44.35151217,2686.7,2686.4,3.21338774]
[1739535346372,0.74435,2686.5,2686.4,0.00558774]
[1739535346977,41.54435,2686.5,2686.4,0.00558774]
[1739535349978,40.8,2686.5,2686.4,3.21338774]
[1739535350184,40.8,2686.5,2686.4,8.53057991]
[1739535350381,40.8,2686.5,2686.4,14.53057991]
[1739535350681,0.74422,2687.0,2686.8,0.74426]
[1739535350885,0.74418,2687.1,2686.9,1.35732]
[1739535351580,40.8,2687.0,2686.9,1.35732]
[1739535353284,40.8,2687.0,2686.9,0.6131]
[1739535353985,40.8,2687.0,2686.9,1.35734]
[1739535355079,40.8,2687.0,2686.9,0.6131]
[1739535355680,40.8,2687.0,2686.9,1.35734]
[1739535355988,40.8,2687.0,2686.9,0.6131]
[1739535356884,40.8,2687.0,2686.9,1.35734]
[1739535357087,41.54421,2687.0,2686.9,0.6131]
[1739535357380,0.74424,2686.9,2686.8,4.8348]
[1739535357983,41.54424,2686.9,2686.8,4.8348]
[1739535358183,41.54424,2686.9,2686.8,1.627]
[1739535358683,41.54424,2686.9,2686.6,0.648]
[1739535358684,40.8,2686.9,2686.6,1.3923]
[1739535358885,0.74429,2686.7,2686.6,0.648]
[1739535359086,0.74429,2686.7,2686.6,2.275]
[1739535359586,41.54429,2686.7,2686.6,2.275]
[1739535359984,41.54429,2686.7,2686.6,1.627]
[1739535360185,41.54429,2686.7,2686.4,0.00558774]
[1739535360186,0.74435,2686.5,2686.4,0.65358774]
[1739535360385,43.74581217,2686.7,2686.4,0.65358774]
[1739535360781,0.74435,2686.5,2686.4,0.65358774]
[1739535361688,0.74435,2686.5,2686.4,0.00558774]
[1739535362491,41.54435,2686.5,2686.4,0.00558774]
[1739535362990,0.74446,2686.1,2686.0,19.488]
[1739535363186,2.94581217,2686.2,2685.6,4.4466]
[1739535363386,2.94581217,2685.9,2685.6,4.4466]
[1739535363586,2.94581217,2685.9,2685.5,1.627]
[1739535363787,0.7446,2685.6,2685.5,1.627]
[1739535364386,41.5446,2685.6,2685.5,1.627]
[1739535364585,40.8,2685.6,2685.5,1.627]
[1739535364987,40.8,2685.6,2685.5,2.37163]
[1739535365191,40.8,2685.6,2685.5,5.57943]
[1739535365795,40.8,2685.6,2685.5,8.52524217]
[1739535366090,3.2078,2686.2,2685.7,0.74457]
[1739535366296,3.2078,2686.2,2686.1,0.74446]
[1739535366483,3.2078,2686.7,2686.1,4.8348]
[1739535366688,2.94581217,2687.2,2686.4,3.2078]
[1739535366895,0.74428,2686.8,2686.5,1.627]
[1739535367189,41.54432,2686.6,2686.5,1.627]
[1739535367492,41.54434,2686.6,2686.4,3.21338774]
[1739535367690,0.74435,2686.5,2686.4,0.00558774]
[1739535368787,41.54435,2686.5,2686.4,0.00558774]
[1739535371993,46.8,2686.5,2685.7,3.2078]
[1739535372193,46.8,2686.5,2685.8,0.74454]
[1739535372194,2.94581217,2686.1,2685.8,0.74454]
[1739535372388,2.0207,2686.0,2685.8,0.74454]
[1739535372799,0.74452,2685.9,2685.8,0.74454]
[1739535373195,2.0207,2686.0,2685.8,0.74454]
[1739535373395,0.74454,2685.8,2685.7,3.2078]
[1739535373596,40.8,2685.9,2685.7,3.2078]
[1739535373797,41.54453,2685.9,2685.7,3.95235]
[1739535374001,41.54453,2685.9,2685.7,3.2078]
[1739535374300,41.54453,2685.9,2685.7,3.95235]
[1739535375595,40.8,2685.9,2685.7,3.2078]
[1739535375801,41.54453,2685.9,2685.7,3.95237]
[1739535376701,0.74454,2685.8,2685.7,3.2078]
[1739535377802,0.74457,2685.7,2685.6,1.63358774]
[1739535378205,0.74457,2685.7,2685.6,0.00558774]
[1739535378394,41.54457,2685.7,2685.6,0.00558774]
[1739535380209,40.8,2685.7,2685.6,0.75018774]
[1739535382905,41.54457,2685.7,2685.6,1.63358774]
[1739535385112,40.8,2685.7,2685.6,2.37818774]
[1739535386205,40.8,2685.7,2685.6,1.63358774]
[1739535386400,41.54457,2685.7,2685.6,1.63358774]
[1739535387215,40.8,2685.7,2685.6,2.37818774]
[1739535387513,40.8,2685.7,2685.6,5.32399991]
[1739535387902,0.5869,2686.6,2685.7,1.86144]
[1739535388103,3.2078,2686.7,2686.4,0.74437]